Cogmind - Beta 13 --- EXPLORER MODE // 2024.03.05 @ 18:22:31 Player: DemonChuckle Result: Destroyed by G-67 Veteran with Field Laser Performance ------------- Evolutions (5) 2500 Regions Visited (14) 2800 Robots Destroyed (194) 970 Value Destroyed (7127) 7127 Prototype IDs (18) 360 Alien Tech Used (2) 400 Bonus (451) 451 TOTAL SCORE: 14608 Bonus ------- High Alert Combat Kills 46 Follower Combat Kills 105 Met Zhirov 300 Cogmind --------- Core Integrity 0/1000 Matter 249/300 Energy 100/100 System Corruption 9% Temperature Cool (37) Movement Walking (190) Ox1 Location -4/Proximity Caves Parts ------- > --- POWER (2) -------- (None) > --- PROPULSION (4) --- Myomer Leg > --- UTILITY (8) ------ Improved Coolant Injector Large Storage Unit Improved Target Analyzer Armor Integrity Analyzer > --- WEAPON (4) ------- Antimatter Cannon Antimatter Cannon Makeshift Hammer Power Sword > --- INVENTORY (15) --- Humpback Heart of Steel Antimatter Cannon Advanced Datajack Peak State ------------ > --- POWER ------------ Light Antimatter Reactor Heavy Antimatter Reactor > --- PROPULSION ------- Myomer Leg Myomer Leg Myomer Leg Myomer Leg > --- UTILITY ---------- Advanced Power Amplifier Improved Cooling System Advanced Cooling System Improved Coolant Injector Large Storage Unit Improved Target Analyzer Improved Target Analyzer Armor Integrity Analyzer > --- WEAPON ----------- Power Sword Power Sword Power Sword Power Sword > --- INVENTORY -------- Humpback Improved Salvage Targeting Computer Experimental Weapon Shielding Heart of Steel Antimatter Cannon Antimatter Cannon Antimatter Cannon Advanced Datajack Makeshift Hammer Makeshift Hammer Makeshift Hammer Makeshift Hammer [Rating: 108] Favorites ----------- Power Reinforced Deuterium Engine Engine Reinforced Deuterium Engine Power Core Light Nuclear Core Reactor Light Antimatter Reactor Propulsion Carbon-fiber Leg Treads Armored Medium Treads Leg Carbon-fiber Leg Wheel Compact Wheel Flight Unit Cooled Nuclear Pulse Thruster Utility Large Storage Unit Device Improved Cooling System Storage Large Storage Unit Processor Armor Integrity Analyzer Hackware Makeshift Hacking Suite Protection Light Armor Plating Weapon Precision Assault Rifle Energy Gun Pulse Rifle Energy Cannon Ion Cannon Ballistic Gun Precision Assault Rifle Ballistic Cannon Antimatter Cannon Launcher Advanced EMP Blaster Special Weapon Mining Laser Impact Weapon Makeshift Hammer Slashing Weapon Power Sword Build | -11 -10 -10 -9 -9 -8 -7 -7 -7 -6 -5 -5 -5 -5 -4 ------- Run | Yrd Mat Min Mat Min Mat Fac Low Low Fac Fac Upp Upp Zhi Pro Slots Evolved 11 | . 1 . 2 . 2 2 . . 2 2 . . . . Power 1 | . . . . . . 1 . . . . . . . . Propulsion 2 | . 1 . 1 . . . . . . . . . . . Utility 6 | . . . 1 . 1 . . . 2 2 . . . . Weapon 2 | . . . . . 1 1 . . . . . . . . Parts Attached 166 | 7 4 14 13 . 10 55 1 2 9 25 5 . 5 16 Power 18 | 1 . 1 2 . 1 7 1 . 2 1 . . 1 1 Engine 12 | 1 . 1 1 . 1 5 1 . 2 . . . . . Core 3 | . . . 1 . . 2 . . . . . . . . Reactor 3 | . . . . . . . . . . 1 . . 1 1 Propulsion 45 | 2 1 5 6 . . 16 . . 3 5 . . 2 5 Treads 7 | . 1 1 1 . . . . . . 3 . . 1 . Leg 32 | 2 . . 4 . . 16 . . 3 2 . . . 5 Wheel 5 | . . 4 1 . . . . . . . . . . . Hover . | . . . . . . . . . . . . . . . Flight 1 | . . . . . . . . . . . . . 1 . Utility 53 | 2 1 5 2 . 6 11 . 2 4 9 5 . 2 4 Device 33 | 1 1 3 1 . 1 9 . 1 4 6 3 . 1 2 Storage 6 | . . 1 1 . 1 1 . . . . 2 . . . Processor 6 | . . . . . 1 1 . . . 3 . . . 1 Hackware 1 | . . . . . . . . 1 . . . . . . Protection 7 | 1 . 1 . . 3 . . . . . . . 1 1 Artifact . | . . . . . . . . . . . . . . . Weapon 50 | 2 2 3 3 . 3 21 . . . 10 . . . 6 Energy Gun 6 | . . . 1 . 1 4 . . . . . . . . Energy Cannon 9 | . . . . . . 9 . . . . . . . . Ballistic Gun 13 | 2 . 2 1 . 2 6 . . . . . . . . Ballistic Cannon 6 | . . . . . . . . . . 4 . . . 2 Launcher 1 | . . . . . . 1 . . . . . . . . Special Weapon 4 | . 2 1 1 . . . . . . . . . . . Impact Weapon 6 | . . . . . . . . . . 5 . . . 1 Slashing Weapon 5 | . . . . . . 1 . . . 1 . . . 3 Piercing Weapon . | . . . . . . . . . . . . . . . Special Melee Weapon . | . . . . . . . . . . . . . . . Unidentified Prototypes 10 | . . 1 . . 1 2 . . . 1 . . 5 . Parts Lost 45 | . . 12 4 . 1 9 . . . 2 . . . 17 Power 8 | . . 1 1 . . 3 . . . . . . . 3 Propulsion 14 | . . 5 1 . . 3 . . . 1 . . . 4 Utility 13 | . . 2 . . 1 1 . . . 1 . . . 8 Weapon 10 | . . 4 2 . . 2 . . . . . . . 2 Highest Loss Streak 14 | . . 9 4 . 1 2 . . . 1 . . . 14 To Critical Strikes 2 | . . . . . . 2 . . . . . . . . Average Slot Usage (%) 96 | . 87 75 87 90 88 98 100 100 100 99 99 100 98 95 Engine 7 | . 12 9 6 . 3 10 7 14 12 9 5 5 2 . Core 2 | . . . 3 10 4 2 6 . . . . . . . Reactor 1 | . . . . . . . . . . 1 5 5 8 10 Treads 1 | . . 12 5 . . . . . . 1 5 5 4 3 Leg 23 | . 25 14 22 40 33 27 28 28 25 20 16 16 16 15 Device 18 | . 12 10 12 10 9 19 14 14 25 27 18 22 18 21 Storage 6 | . . 1 7 10 7 7 7 7 6 5 5 5 5 5 Processor 7 | . . . . . . 1 7 7 6 9 18 16 16 16 Energy Gun 1 | . . . 8 10 10 3 . . . . . . . . Energy Cannon 5 | . . . . . . 19 . . . . . . . . Ballistic Gun 9 | . 12 9 10 10 11 3 28 28 25 5 . . . . Ballistic Cannon 3 | . . . . . . . . . . 6 16 16 16 . Slashing Weapon 2 | . . . . . . . . . . 2 5 5 5 20 Naked Turns . | . . . . . . . . . . . . . . . Heaviest Build 251 | 12 12 19 28 28 45 77 68 68 71 80 251 78 85 85 Greatest Support 100 | 20 20 26 49 49 49 65 60 60 60 60 45 45 45 100 Greatest Overweight (x) 27 | . . 1 1 . . 2 1 1 1 2 5 1 27 19 Average Overweight (x) . | . . . . . . . 1 1 1 1 1 1 1 . Largest Inventory Capacity 35 | 5 5 8 8 8 8 15 15 15 15 15 35 15 15 15 Average Capacity 13 | 5 5 5 7 8 7 13 15 15 15 15 15 15 15 15 Most Carried 16 | 5 5 5 8 8 8 15 15 15 15 15 16 15 15 15 Average Carried 11 | 3 4 3 5 8 7 10 14 14 13 14 14 15 14 14 Final Capacity 15 | 5 5 5 8 8 8 15 15 15 15 15 15 15 15 15 Final Carried 15 | 5 5 5 8 8 6 12 14 15 15 15 15 15 15 7 Class Distribution -------------------- 53% | Scavenger-Gunner 23% | Hacker-Gunner 13% | Hacker-Mutant 8% | Scavenger-Mutant Dominant Class ---------------- Hacker-Mutant | -10/Materials Hacker-Mutant | -10/Mines Scavenger-Mutant | -9/Materials Hacker-Mutant | -9/Mines Hacker-Tank | -8/Materials Hacker-Gunner | -7/Factory Scavenger-Gunner | -7/Lower Caves Scavenger-Gunner | -7/Lower Caves Scavenger-Gunner | -6/Factory Scavenger-Gunner | -5/Factory Scavenger-Gunner | -5/Upper Caves Scavenger-Gunner | -5/Upper Caves Scavenger-Gunner | -5/Zhirov Scavenger-Mutant | -4/Proximity Caves Resources | -11 -10 -10 -9 -9 -8 -7 -7 -7 -6 -5 -5 -5 -5 -4 ----------- Run | Yrd Mat Min Mat Min Mat Fac Low Low Fac Fac Upp Upp Zhi Pro Matter Collected 3698 | 251 . 218 172 201 231 861 302 . 146 592 370 76 . 278 Remotely . | . . . . . . . . . . . . . . . Salvage Created 8214 | 36 . 74 404 107 600 3682 587 . 122 1804 190 37 . 571 Parts 386 | 7 . . 30 6 40 185 21 . 8 67 3 4 . 15 Haulers Intercepted 2 | . . . . . . 2 . . . . . . . . Recyclers Shooed 1 | 1 . . . . . . . . . . . . . . Parts Field Recycled . | . . . . . . . . . . . . . . . Retrieved Matter . | . . . . . . . . . . . . . . . Parts Self-Destructed . | . . . . . . . . . . . . . . . Prevented . | . . . . . . . . . . . . . . . Kills | -11 -10 -10 -9 -9 -8 -7 -7 -7 -6 -5 -5 -5 -5 -4 ------- Run | Yrd Mat Min Mat Min Mat Fac Low Low Fac Fac Upp Upp Zhi Pro Combat Hostiles Destroyed 145 | . . 6 6 2 11 57 11 . 2 30 8 4 . 8 Melee 12 | . . . . . . . . . . 5 . . . 7 Guns 56 | . . 6 6 2 7 8 11 . 2 14 . . . . Cannons 64 | . . . . . . 47 . . . 4 8 4 . 1 AOE 4 | . . . . . 4 . . . . . . . . . Classes Destroyed 17 | 1 . 2 4 1 4 4 . . . . . . . 1 Worker 18 | . . . 2 . 2 11 . . . 3 . . . . Builder 15 | . . . . . 2 8 . . . 5 . . . . Tunneler 5 | 2 . . 1 . 1 1 . . . . . . . . Hauler 2 | . . . . . . 2 . . . . . . . . Recycler 5 | . . . . . 1 2 . . . 2 . . . . Minesweeper 1 | . . . . . . . . . . . . . . 1 Operator 3 | . . . . . . 3 . . . . . . . . Watcher 14 | . . . 2 . 2 6 . . . 4 . . . . Swarmer 22 | . . . . . 3 8 . . . 4 4 3 . . Grunt 66 | . . . 3 1 4 29 8 . 2 16 2 . . 1 Brawler 8 | . . . . 1 . 4 2 . . 1 . . . . Duelist 5 | . . . . . . 1 . . . . 1 . . 3 Sentry 15 | . . . 3 . 2 6 1 . . 2 1 . . . Demolisher 1 | . . 1 . . . . . . . . . . . . Hunter 15 | . . . . . 2 6 . . . 2 . 1 . 4 Programmer 8 | . . . . . . 3 . . . 5 . . . . Assembled 5 | . . 5 . . . . . . . . . . . . Best Kill Streak 14 | 1 . 5 5 2 6 10 4 . 2 14 5 3 . 3 Combat Bots Only 11 | . . 5 4 2 3 5 4 . 2 11 5 3 . 3 Max Kills in Single Turn 6 | 1 . 1 2 1 6 2 2 . 2 3 1 1 . 1 Gunslinging 1 | . . . . . 1 1 1 . 1 1 . . . . Exploded 2 | . . . . . 2 . . . . . . . . . Melee 1 | . . . . . . . . . . 1 . . . 1 Uniques/NPCs Destroyed . | . . . . . . . . . . . . . . . Combat | -11 -10 -10 -9 -9 -8 -7 -7 -7 -6 -5 -5 -5 -5 -4 -------- Run | Yrd Mat Min Mat Min Mat Fac Low Low Fac Fac Upp Upp Zhi Pro Hostile Shots Fired 1087 | . . 79 63 3 60 365 62 . 5 134 24 24 . 268 Missed 340 | . . 16 19 . 15 132 20 . . 47 10 9 . 72 Damage Taken 8257 | . . 1217 352 31 543 1616 324 . 55 1155 149 149 . 2666 Core 1537 | . . 248 31 . 63 215 38 . 11 128 . 25 . 778 Absorbed by Shields . | . . . . . . . . . . . . . . . Redirected to Shielding 153 | . . . . . . . . . . . . . . 153 Ignored by Resistances 4921 | . . 708 223 20 242 1043 203 . 35 683 89 92 . 1583 Regen/Repaired (Parts) 237 | . . . . . 100 38 . . . 99 . . . . Core Remaining (%) 73 | 100 . . . 92 88 . . 63 98 . . . . . Volleys Fired 301 | 7 . 19 29 6 34 130 14 . 2 39 9 9 . 3 Largest 4 | 2 . 1 2 2 3 4 4 . 4 4 3 3 . 2 Hottest 254 | 40 . 100 63 63 113 254 112 . 112 120 120 120 . 80 Shots Fired 948 | 14 . 19 45 12 100 493 58 . 8 138 28 27 . 6 Gun 442 | 14 . 17 35 12 100 110 58 . 8 88 . . . . Cannon 493 | . . . . . . 382 . . . 50 28 27 . 6 Launcher 1 | . . . . . . 1 . . . . . . . . Special 12 | . . 2 10 . . . . . . . . . . . Kinetic 443 | 14 . 17 20 6 62 59 58 . 8 138 28 27 . 6 Thermal 421 | . . 2 25 6 6 382 . . . . . . . . Explosive . | . . . . . . . . . . . . . . . Electromagnetic 84 | . . . . . 32 52 . . . . . . . . Robot Hit Streak 71 | 4 . 9 27 10 19 71 42 . 9 22 17 8 . 5 Robot Miss Streak 3 | 1 . 3 1 1 1 2 1 . . 1 1 3 . 1 Penetration Max 1 | . . . . . 1 . . . . . . . . . Secondary Targets 13 | . . . . . 1 1 6 . 1 4 . . . . Max Gunslinging Chain 2 | . . . . . 1 1 2 . 1 1 . . . . Shots Hit Robots 716 | 10 . 15 41 10 48 325 44 . 7 146 18 13 . 39 Core Hits 311 | 4 . 12 18 3 25 135 23 . 4 53 11 4 . 19 Critical Kills 2 | . . . . . . 1 . . . 1 . . . . Critical Parts Destroyed 7 | . . . . . . . . . . 7 . . . . Critical Strikes 33 | . . . 1 . . 2 . . . 15 2 3 . 10 Burn 1 | . . . . . . 1 . . . . . . . . Meltdown 1 | . . . . . . 1 . . . . . . . . Destroy 2 | . . . 1 . . . . . . 1 . . . . Blast 11 | . . . . . . . . . . 5 2 3 . 1 Smash 7 | . . . . . . . . . . 7 . . . . Sever 11 | . . . . . . . . . . 2 . . . 9 Melee Attacks 88 | . . . . . . 1 . . . 48 . . . 39 Impact 42 | . . . . . . . . . . 40 . . . 2 Slashing 46 | . . . . . . 1 . . . 8 . . . 37 Piercing . | . . . . . . . . . . . . . . . Sneak Attacks 7 | . . . . . . 1 . . . 2 . . . 4 Combat Hostiles . | . . . . . . . . . . . . . . . Follow-up Attacks 20 | . . . . . . . . . . 10 . . . 10 Damage Inflicted 19070 | 103 . 226 421 77 1494 7970 857 . 156 5087 765 455 . 1459 Guns 5785 | 103 . 202 387 77 853 1569 857 . 156 1581 . . . . Cannons 8956 | . . . . . . 6164 . . . 1432 765 455 . 140 Explosions 843 | . . . . . 633 126 . . . 84 . . . . Melee 3378 | . . . . . . 69 . . . 1990 . . . 1319 Ramming 50 | . . . . . 8 42 . . . . . . . . Kinetic 7328 | 103 . 202 245 45 488 859 857 . 156 3013 765 455 . 140 Thermal 6293 | . . 24 176 32 246 5815 . . . . . . . . Explosive 511 | . . . . . 427 . . . . 84 . . . . Electromagnetic 1510 | . . . . . 325 1185 . . . . . . . . Impact 1779 | . . . . . . . . . . 1726 . . . 53 Slashing 1599 | . . . . . . 69 . . . 264 . . . 1266 Piercing . | . . . . . . . . . . . . . . . Highest Corruption 9 | . . . . . . 7 7 7 . 3 3 3 3 9 Average Corruption 4 | . . . . . . 4 7 7 . 1 3 3 3 3 Corruption Purged . | . . . . . . . . . . . . . . . Corruption Blocked . | . . . . . . . . . . . . . . . Effects 208 | . . . . . . 65 73 6 . 16 16 7 13 12 Message Errors 47 | . . . . . . 18 17 . . 2 4 1 3 2 Matter Fused 53 | . . . . . . 16 17 3 . 6 2 3 5 1 Heat Flow Errors 24 | . . . . . . 5 9 3 . 2 2 . . 3 Energy Discharges 23 | . . . . . . 7 6 . . 3 2 1 2 2 Parts Rejected 1 | . . . . . . . . . . . . . . 1 Parts Fused 2 | . . . . . . 1 . . . 1 . . . . Data Loss (minor) 27 | . . . . . . 6 11 . . . 3 2 3 2 Data Loss (major) 13 | . . . . . . 3 6 . . 1 2 . . 1 Misfires 8 | . . . . . . 2 5 . . . 1 . . . Alerts 3 | . . . . . . 2 1 . . . . . . . Weapon Failures 7 | . . . . . . 5 1 . . 1 . . . . Overload Shots . | . . . . . . . . . . . . . . . Overflow Damage 996 | . . . . . 42 158 . . . 689 27 18 . 62 Projectiles 253 | . . . . . . 112 . . . 96 27 18 . . Explosions 59 | . . . . . 42 17 . . . . . . . . Melee 684 | . . . . . . 29 . . . 593 . . . 62 Knockbacks 16 | . . . . . . . . . . 10 3 3 . . Impact 5 | . . . . . . . . . . 5 . . . . Kinetic 10 | . . . . . . . . . . 4 3 3 . . Secondary 1 | . . . . . . . . . . 1 . . . . Self-Inflicted Damage 130 | . . . . . 108 22 . . . . . . . . Shots 5 | . . . . . 4 1 . . . . . . . . Rammed . | . . . . . . . . . . . . . . . Targets Rammed 6 | . . . . . 1 5 . . . . . . . . Kicked 6 | . . . . . 1 5 . . . . . . . . Crushed . | . . . . . . . . . . . . . . . Highest Temperature 500 | 12 . 109 13 6 272 500 429 175 8 137 46 . . 180 Average Temperature 105 | 5 . 58 4 6 76 96 151 77 8 79 42 . . 47 Received Heat Transfer 2771 | . . 60 207 12 153 759 273 . 63 465 45 . . 734 Effects 18 | . . . . . 3 3 12 . . . . . . . Shutdowns 4 | . . . . . . 2 2 . . . . . . . Energy Bleed 2 | . . . . . . . 2 . . . . . . . Interference 9 | . . . . . 3 . 6 . . . . . . . Matter Decay 1 | . . . . . . 1 . . . . . . . . Damage (minor) 2 | . . . . . . . 2 . . . . . . . Siege Activations . | . . . . . . . . . . . . . . . Robots Corrupted . | . . . . . . . . . . . . . . . Combat Hostiles . | . . . . . . . . . . . . . . . Parts Fried 17 | . . . . . . 2 . . . 15 . . . . Impact Corruptions 20 | . . . . . . . . . . 20 . . . . Robots Melted 2 | . . . . . . 2 . . . . . . . . Combat Hostiles 2 | . . . . . . 2 . . . . . . . . Parts Melted 26 | . . . . . 3 23 . . . . . . . . Heat Transferred 10577 | . . 50 575 75 350 9527 . . . . . . . . Parts Sabotaged . | . . . . . . . . . . . . . . . Parts Stolen . | . . . . . . . . . . . . . . . Parts Stripped . | . . . . . . . . . . . . . . . Power Chain Reactions 7 | . . . . . 4 3 . . . . . . . . Alert | -11 -10 -10 -9 -9 -8 -7 -7 -7 -6 -5 -5 -5 -5 -4 ------- Run | Yrd Mat Min Mat Min Mat Fac Low Low Fac Fac Upp Upp Zhi Pro Peak Influence 501 | 10 24 30 204 106 501 315 . . 110 450 . . . . Initial 67 | . 4 6 . 56 29 67 . . 36 39 . . . . Average 115 | 7 12 12 124 96 193 117 . . 47 174 . . . . Maximum Alert Level 2 | . . . 1 . 2 1 . . . 2 . . . . Low Security (%) 77 | 100 100 100 93 100 53 73 . . 100 63 . . . . Level 1 21 | . . . 6 . 28 26 . . . 33 . . . . Level 2 1 | . . . . . 17 . . . . 2 . . . . Level 3 . | . . . . . . . . . . . . . . . Level 4 . | . . . . . . . . . . . . . . . Level 5 . | . . . . . . . . . . . . . . . High Security . | . . . . . . . . . . . . . . . Max Security . | . . . . . . . . . . . . . . . Squads Dispatched 33 | . . . 1 . 2 22 . . 1 6 . . . 1 Investigation 14 | . . . . . . 9 . . 1 4 . . . . Extermination 6 | . . . . . . 4 . . . 2 . . . . Reinforcement 6 | . . . 1 . 2 3 . . . . . . . . Assault 1 | . . . . . . . . . . . . . . 1 Garrison 6 | . . . . . . 6 . . . . . . . . Intercept . | . . . . . . . . . . . . . . . Searches Triggered . | . . . . . . . . . . . . . . . Construction Impeded 1 | . . . . . 1 . . . . . . . . . Haulers Reinforced 1 | . . . . . . 1 . . . . . . . . Active Scanning Responses . | . . . . . . . . . . . . . . . Cargo Convoy Interrupts . | . . . . . . . . . . . . . . . Stealth | -11 -10 -10 -9 -9 -8 -7 -7 -7 -6 -5 -5 -5 -5 -4 --------- Run | Yrd Mat Min Mat Min Mat Fac Low Low Fac Fac Upp Upp Zhi Pro Distress Signals 7 | . . . 1 . 4 . . . . 2 . . . . Communications Jammed . | . . . . . . . . . . . . . . . Distress Signals . | . . . . . . . . . . . . . . . Times Spotted 195 | . 3 23 8 2 15 68 11 . 3 37 8 4 . 13 Peak Tracking Total 14 | . 2 11 3 2 4 3 5 . 3 6 5 3 . 14 Tactical Retreats 6 | . . . 1 . 1 1 . . . . . . . 3 Traps | -11 -10 -10 -9 -9 -8 -7 -7 -7 -6 -5 -5 -5 -5 -4 ------- Run | Yrd Mat Min Mat Min Mat Fac Low Low Fac Fac Upp Upp Zhi Pro Traps Triggered 7 | . . . . . . 6 . . . 1 . . . . Indirectly . | . . . . . . . . . . . . . . . Trap Hack Attempts . | . . . . . . . . . . . . . . . Triggered . | . . . . . . . . . . . . . . . Disarmed . | . . . . . . . . . . . . . . . Reprogrammed . | . . . . . . . . . . . . . . . Reused . | . . . . . . . . . . . . . . . Traps Extracted . | . . . . . . . . . . . . . . . Installed 1 | . . . . . . . . . . . . . . 1 Triggered 1 | . . . . . . . . . . . 1 . . . Machines | -11 -10 -10 -9 -9 -8 -7 -7 -7 -6 -5 -5 -5 -5 -4 ---------- Run | Yrd Mat Min Mat Min Mat Fac Low Low Fac Fac Upp Upp Zhi Pro Machines Disabled 23 | . . . . . 2 13 . . . 8 . . . . Max in Single Turn 4 | . . . . . 1 2 . . . 4 . . . . Garrison Access 1 | . . . . . . 1 . . . . . . . . Machines Repaired . | . . . . . . . . . . . . . . . Machines Dismantled . | . . . . . . . . . . . . . . . Machines Sabotaged . | . . . . . . . . . . . . . . . Overloaded Fab Kills . | . . . . . . . . . . . . . . . Hacking | -11 -10 -10 -9 -9 -8 -7 -7 -7 -6 -5 -5 -5 -5 -4 --------- Run | Yrd Mat Min Mat Min Mat Fac Low Low Fac Fac Upp Upp Zhi Pro Machines Accessed 43 | . 1 1 3 . 1 18 1 1 1 7 . . 9 . Terminals 17 | . 1 . 2 . . 9 . . . 5 . . . . Fabricators 3 | . . . . . . 2 . . 1 . . . . . Repair Stations 4 | . . . . . 1 2 . . . 1 . . . . Recycling Units 3 | . . . . . . 2 . . . 1 . . . . Scanalyzers 3 | . . . 1 . . 2 . . . . . . . . Garrison Access 1 | . . . . . . 1 . . . . . . . . Total Hacks 157 | . 1 1 12 . 7 56 1 1 6 24 . . 48 . Successful 118 | . 1 1 10 . 4 33 1 1 5 14 . . 48 . Failed 39 | . . . 2 . 3 23 . . 1 10 . . . . Catastrophic 7 | . . . . . . 6 . . . 1 . . . . Database Lockouts . | . . . . . . . . . . . . . . . Manual . | . . . . . . . . . . . . . . . Terminals 55 | . 1 . 8 . . 30 . . . 16 . . . . Fabricators 10 | . . . . . . 4 . . 6 . . . . . Repair Stations 18 | . . . . . 7 7 . . . 4 . . . . Recycling Units 7 | . . . . . . 3 . . . 4 . . . . Scanalyzers 15 | . . . 4 . . 11 . . . . . . . . Garrison Access 1 | . . . . . . 1 . . . . . . . . Terminal Hacks 81 | . 1 1 6 . . 15 1 1 . 8 . . 48 . Record 39 | . . . 1 . . . . . . 2 . . 36 . Part Schematic 7 | . . . . . . 1 . . . 2 . . 4 . Robot Analysis 7 | . . . . . . 2 . . . 1 . . 4 . Prototype ID Bank 4 | . . . . . . . . . . . . . 4 . Open Door 3 | . . 1 . . . . 1 1 . . . . . . Branch Access Points 3 | . 1 . . . . 1 . . . 1 . . . . Terminal Index 1 | . . . . . . . . . . 1 . . . . Alert Level 1 | . . . . . . 1 . . . . . . . . Unreport Threat 2 | . . . . . . 2 . . . . . . . . Surveillance Status 2 | . . . 1 . . 1 . . . . . . . . Patrol Status 1 | . . . . . . . . . . 1 . . . . Transport Status 1 | . . . 1 . . . . . . . . . . . Recall Extermination 3 | . . . . . . 3 . . . . . . . . Recall Reinforcements 1 | . . . 1 . . . . . . . . . . . Hauler Manifests 2 | . . . 1 . . 1 . . . . . . . . Registered Components 1 | . . . 1 . . . . . . . . . . . Zone Layout 3 | . . . . . . 3 . . . . . . . . Fabricator Hacks 6 | . . . . . . 1 . . 5 . . . . . Network Status 1 | . . . . . . . . . 1 . . . . . Load Schematic 2 | . . . . . . . . . 2 . . . . . Build 3 | . . . . . . 1 . . 2 . . . . . Repair Station Hacks 11 | . . . . . 4 5 . . . 2 . . . . Scan Component 6 | . . . . . 2 3 . . . 1 . . . . Repair 5 | . . . . . 2 2 . . . 1 . . . . Recycling Unit Hacks 5 | . . . . . . 1 . . . 4 . . . . Process 1 | . . . . . . . . . . 1 . . . . Report Inventory 2 | . . . . . . 1 . . . 1 . . . . Retrieve Matter 2 | . . . . . . . . . . 2 . . . . Scanalyzer 14 | . . . 4 . . 10 . . . . . . . . Insert Component 7 | . . . 2 . . 5 . . . . . . . . Analyze 7 | . . . 2 . . 5 . . . . . . . . Garrison Access Hacks 1 | . . . . . . 1 . . . . . . . . Seal Access 1 | . . . . . . 1 . . . . . . . . Unauthorized Hacks . | . . . . . . . . . . . . . . . Terminals . | . . . . . . . . . . . . . . . Fabricators . | . . . . . . . . . . . . . . . Repair Stations . | . . . . . . . . . . . . . . . Recycling Units . | . . . . . . . . . . . . . . . Scanalyzers . | . . . . . . . . . . . . . . . Garrison Access . | . . . . . . . . . . . . . . . Data Cores Recovered . | . . . . . . . . . . . . . . . Used . | . . . . . . . . . . . . . . . Hacking Detections 24 | . 1 . 2 . 1 13 . . 1 6 . . . . Full Trace Events 13 | . . . . . . 8 . . 1 4 . . . . Feedback Events 3 | . . . . . . 1 . . . 2 . . . . Corruption 3 | . . . . . . 1 . . . 2 . . . . Feedback Blocked . | . . . . . . . . . . . . . . . Robot Schematics Acquired . | . . . . . . . . . . . . . . . Robots Built 3 | . . . . . . . . . 3 . . . . . Authchips . | . . . . . . . . . . . . . . . Time 134 | . . . . . . . . . 134 . . . . . Total Robot Build Rating 12 | . . . . . . . . . 12 . . . . . Part Schematics Acquired 14 | . . . 2 . . 6 . . . 2 . . 4 . Parts Built 3 | . . . . . . 2 . . 1 . . . . . Authchips . | . . . . . . . . . . . . . . . Time 126 | . . . . . . 42 . . 84 . . . . . Total Part Build Rating 12 | . . . . . . 8 . . 4 . . . . . Parts Repaired 4 | . . . . . 2 1 . . . 1 . . . . Time 129 | . . . . . 29 88 . . . 12 . . . . Parts Recycled . | . . . . . . . . . . . . . . . Recycled Matter 30 | . . . . . . . . . . 30 . . . . Retrieved Matter 30 | . . . . . . . . . . 30 . . . . Retrieved Components . | . . . . . . . . . . . . . . . Parts Scanalyzed 7 | . . . 2 . . 5 . . . . . . . . Part Schematics Acquired 7 | . . . 2 . . 5 . . . . . . . . Parts Damaged . | . . . . . . . . . . . . . . . Bothacking | -11 -10 -10 -9 -9 -8 -7 -7 -7 -6 -5 -5 -5 -5 -4 ------------ Run | Yrd Mat Min Mat Min Mat Fac Low Low Fac Fac Upp Upp Zhi Pro Used RIF Installer . | . . . . . . . . . . . . . . . Robots Hacked . | . . . . . . . . . . . . . . . Non-combat . | . . . . . . . . . . . . . . . Combat . | . . . . . . . . . . . . . . . Robot Hacks Applied . | . . . . . . . . . . . . . . . Relay Couplers Released . | . . . . . . . . . . . . . . . Fabnet Peak Effective % . | . . . . . . . . . . . . . . . Robots Rewired . | . . . . . . . . . . . . . . . Allies Hacked . | . . . . . . . . . . . . . . . Hacks Repelled . | . . . . . . . . . . . . . . . Allies | -11 -10 -10 -9 -9 -8 -7 -7 -7 -6 -5 -5 -5 -5 -4 -------- Run | Yrd Mat Min Mat Min Mat Fac Low Low Fac Fac Upp Upp Zhi Pro Total Allies 5 | . . . . 2 . . . . 3 . . . . . Largest Group 3 | . . . . 2 2 . . . 3 3 . . . . Highest-Rated Group 90 | . . . . 47 47 . . . 90 90 . . . . Highest-Rated Ally 31 | . . . . 31 31 . . . 30 30 . . . . Total Orders 12 | . . 2 2 . 1 . . . . 7 . . . . ROAM 1 | . . . . . . . . . . 1 . . . . EXPLORE 9 | . . 2 2 . 1 . . . . 4 . . . . RETURN 2 | . . . . . . . . . . 2 . . . . Ally Attacks 15 | . . . . . 10 . . . 5 . . . . . Total Damage 327 | . . . . . 148 . . . 179 . . . . . Kills 3 | . . . . . 2 . . . 1 . . . . . Allies Corrupted . | . . . . . . . . . . . . . . . Allies Melted . | . . . . . . . . . . . . . . . Intel | -11 -10 -10 -9 -9 -8 -7 -7 -7 -6 -5 -5 -5 -5 -4 ------- Run | Yrd Mat Min Mat Min Mat Fac Low Low Fac Fac Upp Upp Zhi Pro Robot Analysis Total 7 | . . . . . . 2 . . . 1 . . 4 . Derelict Logs Recovered 6 | . . . . 1 . . 2 . . . 2 1 . . Drone Launches 14 | . . 5 2 . 1 . . . . 6 . . . . Drone Recoveries 4 | . . . . . . . . . . 4 . . . . Exploration | -11 -10 -10 -9 -9 -8 -7 -7 -7 -6 -5 -5 -5 -5 -4 ------------- Run | Yrd Mat Min Mat Min Mat Fac Low Low Fac Fac Upp Upp Zhi Pro Turns Passed 12548 | 224 164 539 398 217 458 3350 2359 160 372 1335 986 539 670 777 Spaces Moved 6243 | 160 122 369 209 158 252 1657 1193 80 63 534 492 269 340 345 Core 13 | 8 . . . . . . . . . . . . 1 4 Treads 131 | . 1 109 18 . . . . . . 2 . . . 1 Legs 5992 | 152 121 197 147 158 252 1657 1193 80 63 532 492 269 339 340 Wheels 107 | . . 63 44 . . . . . . . . . . . Hover . | . . . . . . . . . . . . . . . Flight . | . . . . . . . . . . . . . . . Fastest Speed 50 | 50 120 90 86 120 120 115 190 190 190 190 190 190 190 120 Average Speed 167 | 116 120 127 117 120 120 158 190 190 190 190 191 190 193 181 Slowest Speed 1400 | 120 160 190 190 120 120 265 190 190 190 330 470 190 1400 1000 Overloaded Moves . | . . . . . . . . . . . . . . . Propulsion Burnouts . | . . . . . . . . . . . . . . . Robots Hopped . | . . . . . . . . . . . . . . . Cave-ins Triggered 1 | . . . . . 1 . . . . . . . . . Teleports 1 | . . . . . . . . . . . . . 1 . Exploration Rate (%) 41 | 9 22 89 36 40 26 48 97 11 2 29 69 49 62 33 Regions Visited 14 Branch Regions 8 Pre-discovered Areas 6 | . . 1 . 1 . . . . . . 1 . 3 . Known Exits Taken 14 | 1 1 1 1 1 1 1 1 1 1 1 1 1 1 . Unknown Exits Taken . | . . . . . . . . . . . . . . . Scrap Searched 9 | . . . . 1 . . 5 . . . 3 . . . Spaces Dug 1 | . . . . . 1 . . . . . . . . . Terrain Destroyed 151 | . . 1 . . 62 18 . . . 44 10 14 . 2 Melee . | . . . . . . . . . . . . . . . Projectile 46 | . . 1 . . . 8 . . . 11 10 14 . 2 AOE 104 | . . . . . 61 10 . . . 33 . . . . Terrain Rammed . | . . . . . . . . . . . . . . . Walls Destroyed . | . . . . . . . . . . . . . . . Machines Disabled . | . . . . . . . . . . . . . . . Actions | -11 -10 -10 -9 -9 -8 -7 -7 -7 -6 -5 -5 -5 -5 -4 --------- Run | Yrd Mat Min Mat Min Mat Fac Low Low Fac Fac Upp Upp Zhi Pro Total 7601 | 185 140 415 323 173 331 2065 1253 90 311 719 518 277 352 449 Wait 557 | . 6 1 25 10 24 131 38 . 224 51 . . . 47 Move 6229 | 159 121 368 208 157 251 1656 1192 79 62 533 491 268 339 345 Hop . | . . . . . . . . . . . . . . . Pick Up 151 | 12 5 11 28 . 7 47 4 5 8 15 4 . . 5 Fast Attach 39 | . . . . . 3 13 . . . 8 3 . 7 5 Attach 80 | 7 3 12 8 . 5 26 . 1 3 5 2 . . 8 Detach 14 | . . 1 1 . 1 6 . . . 1 3 . 1 . Swap 49 | . 1 2 5 . 2 16 1 1 6 12 . . . 3 Drop 112 | . 4 1 19 . 3 34 4 4 6 19 6 . 5 7 Fire 301 | 7 . 19 29 6 34 130 14 . 2 39 9 9 . 3 Melee 62 | . . . . . . 1 . . . 36 . . . 25 Ram . | . . . . . . . . . . . . . . . Kick 6 | . . . . . 1 5 . . . . . . . . Crush . | . . . . . . . . . . . . . . . Escape Stasis . | . . . . . . . . . . . . . . . Rewire . | . . . . . . . . . . . . . . . Trap 1 | . . . . . . . . . . . . . . 1 Miscellaneous . | . . . . . . . . . . . . . . . Route ------- -11/Scrapyard -10/Materials (discovered 2 exits: *Min x2) -10/Mines -9/Materials (discovered 4 exits: *Min x2 / *Sto x2) -9/Mines -8/Materials -7/Factory (discovered 4 exits: *Fac x2 / *Low x2) -7/Lower Caves -7/Lower Caves -6/Factory -5/Factory (discovered 3 exits: *Fac / *Upp x2) -5/Upper Caves -5/Upper Caves (discovered 2 exits: Fac / *Zhi) -5/Zhirov -4/Proximity Caves History --------- Turn | Location | Event 46 | -11/Scrapyard | Identified exit to Materials 46 | -11/Scrapyard | Discovered exit to Materials (range 16) 225 | -11/Scrapyard | Entered Materials 225 | -10/Materials | Evolved 1 slot: Propulsion x1 252 | -10/Materials | Identified exit to Mines 303 | -10/Materials | Build established: Hacker-Mutant 389 | -10/Materials | Entered Mines 390 | -10/Mines | Learned location of Storage (-9) 444 | -10/Mines | Assembled infested the area 572 | -10/Mines | Core integrity fell below 50% 575 | -10/Mines | Lost 9 parts (1p2n2u4w) 711 | -10/Mines | Found the Drone Emporium 718 | -10/Mines | Found Prototype Device 720 | -10/Mines | Identified Decoy Drone Bay 799 | -10/Mines | Identified exit to Materials 799 | -10/Mines | Discovered exit to Materials (range 49) 838 | -10/Mines | Core integrity fell below 20% 928 | -10/Mines | Entered Materials 928 | -9/Materials | Evolved 2 slots: Propulsion x1, Utility x1 1041 | -9/Materials | Lost 4 parts (1p1n2w) 1050 | -9/Materials | Identified exit to Storage 1050 | -9/Materials | Discovered exit to Storage (range 20) 1237 | -9/Materials | Discovered exit to Storage (range 35) 1242 | -9/Materials | Identified exit to Mines 1242 | -9/Materials | Discovered exit to Mines (range 45) 1299 | -9/Materials | Discovered exit to Mines (range 9) 1326 | -9/Materials | Entered Mines 1333 | -9/Mines | Met a Derelict bent on vengeance 1523 | -9/Mines | Identified exit to Materials 1523 | -9/Mines | Discovered exit to Materials (range 11) 1543 | -9/Mines | Entered Materials 1543 | -8/Materials | Accompanied by 2 allies 1543 | -8/Materials | Evolved 2 slots: Utility x1, Weapon x1 1548 | -8/Materials | Led the pair of lost Derelicts to an unsafe place 1700 | -8/Materials | Repaired Hvy. Assault Rifle 1715 | -8/Materials | Repaired Sml. Storage Unit? 1825 | -8/Materials | Crushed by falling debris 1981 | -8/Materials | Identified exit to Factory 1981 | -8/Materials | Discovered exit to Factory (range 3) 2001 | -8/Materials | Entered Factory 2001 | -7/Factory | Evolved 2 slots: Power x1, Weapon x1 2172 | -7/Factory | Fabricated Coolant Injector (x2) 2353 | -7/Factory | Build established: Hacker-Gunner 2796 | -7/Factory | Identified exit to Lower Caves 2796 | -7/Factory | Discovered exit to Lower Caves (range 12) 3200 | -7/Factory | Identified exit to Factory 3200 | -7/Factory | Discovered exit to Factory (range 15) 3436 | -7/Factory | Garrison activated, responded to threat 3582 | -7/Factory | Repaired Coolant Injector 3681 | -7/Factory | Discovered exit to Factory (range 12) 5012 | -7/Factory | Garrison activated, responded to threat 5262 | -7/Factory | Build established: Scavenger-Gunner 5351 | -7/Factory | Entered Lower Caves 5426 | -7/Lower Caves | Identified exit to Lower Caves 6322 | -7/Lower Caves | Found Prototype Device 7125 | -7/Lower Caves | Learned 12 Factory zone layouts 7438 | -7/Lower Caves | Attracted the attention of an 0b10 checkpoint 7710 | -7/Lower Caves | Entered another Lower Caves area 7828 | -7/Lower Caves | Discovered exit to Factory (range 10) 7870 | -7/Lower Caves | Entered Factory 7870 | -6/Factory | Evolved 2 slots: Utility x2 7871 | -6/Factory | Identified exit to Factory 8071 | -6/Factory | Fabricated L-41 Fighter (x3) 8155 | -6/Factory | Fabricated Kinecellerator (x1) 8242 | -6/Factory | Entered another Factory area 8242 | -5/Factory | Accompanied by 3 allies 8242 | -5/Factory | Evolved 2 slots: Utility x2 8510 | -5/Factory | Lost 3 allies 8548 | -5/Factory | Destroyed 11 combat bots 8691 | -5/Factory | Identified exit to Factory 8691 | -5/Factory | Discovered exit to Factory (range 21) 8802 | -5/Factory | Identified exit to Upper Caves 8905 | -5/Factory | Build established: Scavenger-Mutant 9328 | -5/Factory | Build established: Scavenger-Gunner 9424 | -5/Factory | Repaired Carbon-fiber Leg 9577 | -5/Factory | Entered Upper Caves 10119 | -5/Upper Caves | Learned Factory security intel 10531 | -5/Upper Caves | Identified exit to Upper Caves 10531 | -5/Upper Caves | Discovered exit to Upper Caves (range 13) 10563 | -5/Upper Caves | Entered another Upper Caves area 11094 | -5/Upper Caves | Identified exit to Zhirov 11094 | -5/Upper Caves | Discovered exit to Zhirov (range 3) 11102 | -5/Upper Caves | Entered Zhirov 11102 | -5/Zhirov | Identified exit to Proximity Caves 11102 | -5/Zhirov | Discovered exit to Proximity Caves (range 3) 11163 | -5/Zhirov | Met Zhirov 11209 | -5/Zhirov | Learned location of Quarantine (-3) 11209 | -5/Zhirov | Learned location of Testing (-2) 11209 | -5/Zhirov | Learned location of Command (-1) 11253 | -5/Zhirov | Zhirov requested help retrieving the SGEMP Prototype 11289 | -5/Zhirov | Found Alien Artifact 11289 | -5/Zhirov | Identified Transdimensional Reconstructor 11289 | -5/Zhirov | Warped through subspace 11634 | -5/Zhirov | Found Alien Artifact 11634 | -5/Zhirov | Identified Integrated Reactor 11634 | -5/Zhirov | Installed Integrated Reactor, increased core energy generation (+10) 11772 | -5/Zhirov | Entered Proximity Caves 12099 | -4/Proximity Caves | Build established: Scavenger-Mutant 12272 | -4/Proximity Caves | Lost 3 parts (1p2n) 12458 | -4/Proximity Caves | Attracted the attention of an 0b10 outpost 12515 | -4/Proximity Caves | Core integrity fell below 50% 12535 | -4/Proximity Caves | Core integrity fell below 20% 12549 | -4/Proximity Caves | Destroyed by G-67 Veteran with Field Laser Last Messages --------------- 12528_ Adv. Power Amplifier destroyed. 12529_ Penetrated by Slug. 12535_ Slug penetrates Wall. 12536_ Acquired Myomer Leg. 12538_ Exp. Weapon Shielding destroyed. 12539_ Power Sword destroyed. 12539_ System corrupted by crushing effect (+1). 12540_ Power Sword destroyed. 12544_ Penetrated by Slug. 12544_ Slug penetrates Wall. 12545_ G-67 Veteran Plasma Rifle blasted off. 12546_ Critical hit (Burn: +50). 12547_ Imp. Salvage Targeting Computer destroyed. 12547_ Imp. Target Analyzer destroyed. 12547_ System corrupted by crushing effect (+3). 12547_ System corrupted by crushing effect (+2). 12547_ Slug penetrates G-67 Veteran. 12547_ Slug penetrates Wall. 12548_ G-67 Veteran destroyed. Map ----- +----------------------------------------------------+ | ????????????????????? ### #???????????????????? | | ??????????????????????? # #???????????????????? | | ???????????????????????? #???????????????????? | | ????????????????????????? #???????????????????? | | ??????????????????????????# #???????????????????? | | ??????????????????????????# #???????????????????? | | ???????????????????????##?# #???????????????????? | | ?????????????????????### ## ##??????????????????? | | ?????????????????????# # #??????????????????? | | ??????????????????????# #??????????????????? | | ??????????????????????## #??????????????????? | | ????????????????####???## ##?????????????????? | | ????????????????# #????## ##????????????????? | | ????????????????# ##????# ##???????????????? | | ????????????????# ##???# #???????????????? | | ?????????????????# ##??# ##???????????????? | | ?????????????????# #?## ##????????????????? | | ?????????????????# ###" ##?????????????????? | | ?????????????????## ## ##??????????????????? | | ??????????????????## ##??????????????????? | | ???????????????????# # #??????????????????? | | ???????????????????# /## #?????####?????????? | | ???????????????????# ### ### #?????????? | | ???????????????????# #?##// ???????? | | ???????????????????# ###!b;; #?????????????? | | ???????????????????# /g%=@%;## #####?????????????? | | ???????????????????# =g!/[=; ###?????????????????? | | ????????????????#####Yg%%;#;##???????????????????? | | ????????????????# ### !=#####????????????????????? | | ???????????????## #????????????????????????? | | ??????????????## ##????????????????????????? | | ?????????????## ##?????????????????????????? | | ?????###?##### #??????????????????????????? | | ###### ### #" =[ ##??????????????????????????? | | [[ ###?????????????????????????? | | #?????????????????????????? | | ###### [ ### #????????????????????????? | | ?###### #?# #???????????????????????? | | ## #### ## ##???????????????????????? | | # #### #????????????????????????? | | ### ##????????????????????????? | | ### ## ##?????????????????????????? | | ## #?##### #??????????????????????????? | | ### #????# ######??????????????????????????? | | #?# #???#####???????????????????????????????? | | #?# ###???????????????????????????????????????? | | #?# ##?????????????????????????????????????????? | | #####??????????????????????????????????????????? | | ##????????????????????????????????????????????? | | ######???????????????????????????????????????? | +----------------------------------------------------+ Best States ------------- Heat Dissipation 119 Coolant Potential 130 Energy Generation 61 Energy Capacity 480 Matter Stores 300 Matter Capacity 300 Sight Range 16 Robot Scan Range 14 Terrain Scan Range 16 Terrain Scan Density 10 Power Amplification 30 Armor Coverage 225 Resistance: KI 35 Resistance: TH 35 Resistance: EX 35 Resistance: EM 35 Resistance: I 35 Resistance: S 35 Resistance: P 35 Weapon Shielding 90 Phase Shifting 10 Evasion (%) 55 Targeting Accuracy 8 Melee Accuracy 5 Target Analysis 9 Armor Integrity Analysis 30 Recoil Reduction 2 Matter Filtering 30 Kinecelleration 40 Salvage Targeting 2 Offensive Hacking 20 Item Schematics ----------------- Structural Scanner | -9/Materials | Scanalyzed Hrd. Medium Armor Plating | -9/Materials | Scanalyzed Transport Network Coupler | -7/Factory | Scanalyzed Adv. Heat Sink | -7/Factory | Hacked Chainsword | -7/Factory | Scanalyzed Armor Integrity Analyzer | -7/Factory | Scanalyzed Kinecellerator | -7/Factory | Scanalyzed Imp. Heat Sink | -7/Factory | Scanalyzed Nuclear Pulse Array | -5/Factory | Hacked Lgt. Antimatter Reactor | -5/Factory | Hacked Assault Drone Bay | -5/Zhirov | Free Exp. Heat Sink | -5/Zhirov | Free Exp. Optical Array | -5/Zhirov | Free Imp. Arc Thrower | -5/Zhirov | Free Robot Schematics ------------------ None Fabricated ------------ Coolant Injector | x2 | -7/Factory | Preloaded L-41 Fighter | x3 | -6/Factory | Preloaded Kinecellerator | x1 | -6/Factory Alien Tech Used ----------------- Transdimensional Reconstructor Integrated Reactor Achievements -------------- Alien Tech Armchair Analyst I Survived The Infestation Subspace Traveler The Science Guy Challenges ------------ None Game ------ Seed CloverChibi Manual? 1 Play Time 02:24:58 Cumulative 78.5 hours Start 2024.03.05 @ 11:41:03 End 2024.03.05 @ 18:22:31 Sessions 1 Manual Loads 0 Difficulty Explorer Special Mode None Game No. 13 Rogue 0 Adventurer 2 Explorer 11 Win Type - Total 0 Types 0/0/0/0/0/0/0/0/0 Lore% 24 Gallery% 39 Achievement% 31 Wizard Run 0 Options --------- Layout 1 ASCII 0 Keyboard 0 Movement Mouse Keybinds 0 Fullscreen 2 Font 24/Smallcaps Map View 50x35 Zoom Use 2% Tactical HUD 1 Map Filters NONE Filters NONE Steam 1 RUN: e23a3c09-f719-4215-860e-078a71ae08eb